fUST/lending_fUST_20241223
["ID","MTS","AMOUNT","RATE_DAILY","PERIOD"]
[346336312,1734898259741,-500.0,0.0001589,2]
[346336313,1734898259751,-500.0,0.0001589,2]
[346336314,1734898259760,-500.0,0.0001589,2]
[346336315,1734898259770,-500.0,0.0001589,2]
[346336316,1734898260054,-500.0,0.0001589,2]
[346336317,1734898260074,-1026.24,0.0001589,2]
[346336318,1734898260090,-500.0,0.0001589,2]
[346336319,1734898260103,-638.78,0.0001589,2]
[346336320,1734898260112,-524.92,0.0001589,2]
[346336321,1734898260122,-500.0,0.0001589,2]
[346336322,1734898260131,-930.06,0.0001589,2]
[346336323,1734898260140,-500.0,0.0001589,2]
[346336324,1734898260150,-568.29,0.0001589,2]
[346336325,1734898260159,-1232.72,0.0001589,2]
[346336326,1734898260168,-659.14,0.0001589,2]
[346336327,1734898260178,-1396.28,0.0001589,2]
[346336328,1734898260187,-500.0,0.0001589,2]
[346336329,1734898260197,-500.0,0.0001589,2]
[346336330,1734898260207,-500.0,0.0001589,2]
[346336331,1734898260216,-500.0,0.0001589,2]
[346336332,1734898260225,-20933.72,0.0001589,2]
[346336333,1734898260235,-1915.93,0.0001589,2]
[346336334,1734898260244,-500.0,0.0001589,2]
[346336335,1734898260253,-500.0,0.0001589,2]
[346336336,1734898260263,-11586.64,0.0001589,2]
[346336337,1734898260273,-3634.74,0.0001589,2]
[346336338,1734898260283,-735.37,0.0001589,2]
[346336339,1734898260292,-539.1627753,0.0001589,2]
[346336340,1734898260301,-609.44,0.0001589,2]
[346336341,1734898260311,-2358.12,0.0001589,2]
[346336342,1734898260321,-16117.57,0.0001589,2]
[346336343,1734898260331,-631.58453998,0.0001589,2]
[346336344,1734898260341,-649.01,0.0001589,2]
[346336345,1734898260351,-993.7,0.0001589,2]
[346336346,1734898260360,-500.0,0.0001589,2]
[346336347,1734898260371,-8248.44,0.0001589,2]
[346336348,1734898260381,-2313.9,0.0001589,2]
[346336349,1734898260391,-50269.66,0.0001589,2]
[346336350,1734898260402,-500.0,0.0001589,2]
[346336351,1734898260411,-2571.7,0.0001589,2]
[346336352,1734898260421,-500.0,0.0001589,2]
[346336353,1734898260430,-500.0,0.0001589,2]
[346336354,1734898260440,-500.0,0.0001589,2]
[346336355,1734898260450,-500.0,0.0001589,2]
[346336356,1734898260462,-540.65,0.0001589,2]
[346336357,1734898260471,-1127.35,0.0001589,2]
[346336358,1734898260481,-500.0,0.0001589,2]
[346336359,1734898260490,-500.0,0.0001589,2]
[346336360,1734898260500,-821.27,0.0001589,2]
[346336361,1734898260510,-975.47,0.0001589,2]
[346336362,1734898260519,-630.05,0.0001589,2]
[346336363,1734898260529,-1895.21,0.0001589,2]
[346336364,1734898260540,-584.88888895,0.0001589,2]
[346336365,1734898260549,-940.44,0.0001589,2]
[346336366,1734898260558,-1313.77,0.0001589,2]
[346336367,1734898260569,-664.22,0.0001589,2]
[346336368,1734898260579,-500.0,0.0001589,2]
[346336369,1734898260589,-2213.08,0.0001589,2]
[346336370,1734898260598,-1144.59,0.0001589,2]
[346336371,1734898260608,-5890.66,0.0001589,2]
[346336372,1734898260618,-573.25,0.0001589,2]
[346336373,1734898260627,-500.0,0.0001589,2]
[346336374,1734898260636,-4883.13,0.0001589,2]
[346336375,1734898260645,-1047.64,0.0001589,2]
[346336376,1734898260654,-500.0,0.0001589,2]
[346336377,1734898260663,-4342.66,0.0001589,2]
[346336378,1734898260673,-607.58,0.0001589,2]
[346336379,1734898260682,-1227.82,0.0001589,2]
[346336380,1734898260691,-500.0,0.0001589,2]
[346336381,1734898260702,-1375.84,0.0001589,2]
[346336382,1734898260714,-2388.17,0.0001589,2]
[346336383,1734898260723,-2216.78,0.0001589,2]
[346336384,1734898260732,-1350.81,0.0001589,2]
[346336385,1734898260741,-1049.15,0.0001589,2]
[346336386,1734898260750,-3607.86,0.0001589,2]
[346336387,1734898260759,-500.0,0.0001589,2]
[346336388,1734898260768,-160.0,0.00015991,7]
[346336389,1734898260777,-5000.0,0.00016,5]
[346336390,1734898260786,-9279.09915581,0.00016,2]
[346336391,1734898260795,-1000.0,0.00016,16]
[346336392,1734898260805,-5000.0,0.00016,2]
[346336393,1734898260814,-188.0,0.00016,2]
[346336394,1734898260823,-3000.0,0.00016,2]
[346336395,1734898260832,-3000.0,0.0001601,2]
[346336396,1734898260841,-3000.0,0.0001602,2]
[346336397,1734898260850,-3000.0,0.0001603,2]
[346336398,1734898260859,-3000.0,0.0001604,2]
[346336399,1734898260869,-3000.0,0.0001605,2]
[346336400,1734898260877,-3000.0,0.0001606,2]
[346336401,1734898260886,-3000.0,0.0001607,2]
[346336402,1734898260895,-3000.0,0.0001608,2]
[346336403,1734898260904,-3000.0,0.0001609,2]
[346336404,1734898260913,-3000.0,0.000161,2]
[346336405,1734898260922,-3000.0,0.0001611,2]
[346336406,1734898260931,-3000.0,0.0001612,2]
[346336407,1734898260940,-3000.0,0.0001613,2]
[346336408,1734898260949,-3000.0,0.0001614,2]
[346336409,1734898260960,-2016.85267282,0.00016148,2]
[346336410,1734898260969,-3000.0,0.0001615,2]
[346336411,1734898260979,-3000.0,0.0001616,2]
[346336412,1734898260988,-500.0,0.00016164,2]
[346336413,1734898260998,-500.0,0.00016164,2]
[346336414,1734898261007,-497.64936071,0.00016164,2]
[346336415,1734898261017,-709.72,0.00016164,2]
[346336416,1734898261026,-564.63,0.00016164,2]
[346336417,1734898261035,-432.75,0.00016164,2]
[346336418,1734898261044,-500.0,0.00016164,2]
[346336419,1734898261053,-500.0,0.00016164,2]
[346336420,1734898261062,-596.88,0.00016164,2]
[346336421,1734898261071,-509.11,0.00016164,2]
[346336422,1734898261081,-500.0,0.00016164,2]
[346336423,1734898261090,-500.0,0.00016164,2]
[346336424,1734898261099,-508.19,0.00016164,2]
[346336425,1734898261108,-200.53667557,0.00016164,2]
[346336426,1734898261118,-500.0,0.00016164,2]
[346336427,1734898261128,-500.0,0.00016164,2]
[346336428,1734898261137,-500.0,0.00016164,2]
[346336429,1734898261147,-500.0,0.00016164,2]
[346336430,1734898261157,-500.0,0.00016164,2]
[346336431,1734898261166,-500.0,0.00016164,2]
[346336432,1734898261174,-996.41,0.00016164,2]
[346336433,1734898261184,-552.02,0.00016164,2]
[346336434,1734898261196,-500.0,0.00016164,2]
[346336435,1734898261205,-896.76,0.00016164,2]
[346336436,1734898261216,-643.06,0.00016164,2]
[346336437,1734898261225,-622.12,0.00016164,2]
[346336438,1734898261234,-544.82,0.00016164,2]
[346336439,1734898261243,-500.0,0.00016164,2]
[346336440,1734898261252,-151.139843,0.00016164,2]
[346336441,1734898261262,-514.67,0.00016164,2]
[346336442,1734898261271,-151.139843,0.00016164,2]
[346336443,1734898261280,-500.0,0.00016164,2]
[346336444,1734898261290,-1747.14,0.00016164,2]
[346336445,1734898261300,-638.51,0.00016164,2]
[346336446,1734898261309,-386.03566932,0.00016164,2]
[346336447,1734898261318,-621.12793919,0.00016164,2]
[346336448,1734898261329,-1146.78,0.00016164,2]
[346336449,1734898261338,-1384.02,0.00016164,2]
[346336450,1734898261348,-204.29,0.00016164,2]
[346336451,1734898261358,-1829.53,0.00016164,2]
[346336452,1734898261367,-500.0,0.00016164,2]
[346336453,1734898261377,-620.23,0.00016164,2]
[346336454,1734898261386,-1154.81,0.00016164,2]
[346336455,1734898261396,-1071.92,0.00016164,2]
[346336456,1734898261405,-3377.75,0.00016164,2]
[346336457,1734898261415,-677.42,0.00016164,2]
[346336458,1734898261424,-500.0,0.00016164,2]
[346336459,1734898261433,-674.98,0.00016164,2]
[346336460,1734898261442,-1484.35,0.00016164,2]
[346336461,1734898261452,-332.69851476,0.00016164,2]
[346336462,1734898261462,-500.0,0.00016164,2]
[346336463,1734898261473,-915.03,0.00016164,2]
[346336464,1734898261486,-1120.23,0.00016164,2]
[346336465,1734898261495,-500.0,0.00016164,2]
[346336466,1734898261504,-500.0,0.00016164,2]
[346336467,1734898261513,-645.28,0.00016164,2]
[346336468,1734898261525,-966.84,0.00016164,2]
[346336469,1734898261534,-500.0,0.00016164,2]
[346336470,1734898261543,-671.49,0.00016164,2]
[346336471,1734898261552,-999.5,0.00016164,2]
[346336472,1734898261562,-1014.49,0.00016164,2]
[346336473,1734898261573,-1300.26,0.00016164,2]
[346336474,1734898261583,-500.0,0.00016164,2]
[346336475,1734898261591,-559.61,0.00016164,2]
[346336476,1734898261601,-962.09,0.00016164,2]
[346336477,1734898261613,-500.0,0.00016164,2]
[346336478,1734898261624,-500.0,0.00016164,2]
[346336479,1734898261634,-500.0,0.00016164,2]
[346336480,1734898261643,-2050.24,0.00016164,2]
[346336481,1734898261652,-500.0,0.00016164,2]
[346336482,1734898261661,-500.0,0.00016164,2]
[346336483,1734898261670,-500.0,0.00016164,2]
[346336484,1734898261679,-1840.32,0.00016164,2]
[346336485,1734898261688,-500.0,0.00016164,2]
[346336486,1734898261697,-619.23,0.00016164,2]
[346336487,1734898261706,-1286.39,0.00016164,2]
[346336488,1734898261716,-500.0,0.00016164,2]
[346336489,1734898261726,-1768.71,0.00016164,2]
[346336490,1734898261735,-1426.45,0.00016164,2]
[346336491,1734898261744,-564.33,0.00016164,2]
[346336492,1734898261754,-1742.18,0.00016164,2]
[346336493,1734898261763,-500.0,0.00016164,2]
[346336494,1734898261772,-500.0,0.00016164,2]
[346336495,1734898261781,-500.0,0.00016164,2]
[346336496,1734898261791,-500.0,0.00016164,2]
[346336497,1734898261800,-500.0,0.00016164,2]
[346336498,1734898261809,-1026.24,0.00016164,2]
[346336499,1734898261818,-500.0,0.00016164,2]
[346336500,1734898261828,-638.78,0.00016164,2]
[346336501,1734898261837,-524.92,0.00016164,2]
[346336502,1734898261845,-387.74451432,0.00016164,2]
[346336503,1734898261854,-930.06,0.00016164,2]
[346336504,1734898261863,-500.0,0.00016164,2]
[346336505,1734898261873,-568.29,0.00016164,2]
[346336506,1734898261883,-1232.72,0.00016164,2]
[346336507,1734898261892,-659.14,0.00016164,2]
[346336508,1734898261901,-1396.28,0.00016164,2]
[346336509,1734898261910,-500.0,0.00016164,2]
[346336510,1734898261920,-500.0,0.00016164,2]
[346336511,1734898261929,-500.0,0.00016164,2]
[346336512,1734898261938,-500.0,0.00016164,2]
[346336513,1734898261947,-20933.72,0.00016164,2]
[346336514,1734898261956,-1915.93,0.00016164,2]
[346336515,1734898261967,-500.0,0.00016164,2]
[346336516,1734898261976,-500.0,0.00016164,2]
[346336517,1734898261986,-11586.64,0.00016164,2]
[346336518,1734898261995,-3634.74,0.00016164,2]
[346336519,1734898262004,-735.37,0.00016164,2]
[346336520,1734898262013,-609.44,0.00016164,2]
[346336521,1734898262022,-2358.12,0.00016164,2]
[346336522,1734898262032,-16117.57,0.00016164,2]
[346336523,1734898262041,-649.01,0.00016164,2]
[346336524,1734898262050,-993.7,0.00016164,2]
[346336525,1734898262059,-500.0,0.00016164,2]
[346336526,1734898262068,-8248.44,0.00016164,2]
[346336527,1734898262078,-2313.9,0.00016164,2]
[346336528,1734898262087,-50269.66,0.00016164,2]
[346336529,1734898262096,-500.0,0.00016164,2]
[346336530,1734898262104,-2571.7,0.00016164,2]
[346336531,1734898262113,-500.0,0.00016164,2]
[346336532,1734898262122,-500.0,0.00016164,2]
[346336533,1734898262131,-500.0,0.00016164,2]
[346336534,1734898262141,-500.0,0.00016164,2]
[346336535,1734898262150,-540.65,0.00016164,2]
[346336536,1734898262159,-1127.35,0.00016164,2]
[346336537,1734898262170,-500.0,0.00016164,2]
[346336538,1734898262179,-500.0,0.00016164,2]
[346336539,1734898262189,-821.27,0.00016164,2]
[346336540,1734898262199,-630.05,0.00016164,2]
[346336541,1734898262211,-975.47,0.00016164,2]
[346336542,1734898262221,-1895.21,0.00016164,2]
[346336543,1734898262230,-940.44,0.00016164,2]
[346336544,1734898262239,-1313.77,0.00016164,2]
[346336545,1734898262248,-664.22,0.00016164,2]
[346336546,1734898262259,-500.0,0.00016164,2]
[346336547,1734898262269,-1144.59,0.00016164,2]
[346336548,1734898262278,-2213.08,0.00016164,2]
[346336549,1734898262287,-5890.66,0.00016164,2]
[346336550,1734898262297,-573.25,0.00016164,2]
[346336551,1734898262306,-500.0,0.00016164,2]
[346336552,1734898262315,-4883.13,0.00016164,2]
[346336553,1734898262324,-1047.64,0.00016164,2]
[346336554,1734898262334,-500.0,0.00016164,2]
[346336555,1734898262344,-4342.66,0.00016164,2]
[346336556,1734898262354,-607.58,0.00016164,2]
[346336557,1734898262364,-1227.82,0.00016164,2]
[346336558,1734898262373,-500.0,0.00016164,2]
[346336559,1734898262382,-1375.84,0.00016164,2]
[346336560,1734898262391,-2388.17,0.00016164,2]
[346336561,1734898262401,-2216.78,0.00016164,2]
[346336562,1734898262410,-1350.81,0.00016164,2]
[346336563,1734898262419,-1049.15,0.00016164,2]
[346336564,1734898262428,-3607.86,0.00016164,2]
[346336565,1734898262438,-160.0,0.00016167,8]
[346336566,1734898262447,-3000.0,0.0001617,2]
[346336567,1734898262458,-3000.0,0.0001618,2]
[346336568,1734898262467,-3000.0,0.0001619,2]
[346336569,1734898262476,-3000.0,0.000162,2]
[346336570,1734898262486,-498.92492318,0.00016208,2]
[346336571,1734898262497,-1000.0,0.00016208,2]
[346336572,1734898262507,-772.35112235,0.00016208,2]
[346336573,1734898262518,-573.7829327,0.00016208,2]
[346336574,1734898262527,-3000.0,0.0001621,2]
[346336575,1734898262541,-833.39131056,0.00016216,2]
[346336576,1734898262551,-3000.0,0.0001622,2]
[346336577,1734898262560,-3000.0,0.0001623,2]
[346336578,1734898262569,-3000.0,0.0001624,2]
[346336579,1734898262579,-3000.0,0.0001625,2]
[346336580,1734898262588,-3000.0,0.0001626,2]
[346336581,1734898262597,-3000.0,0.0001627,2]
[346336582,1734898262610,-3000.0,0.0001628,2]
[346336583,1734898262619,-3000.0,0.0001629,2]
[346336584,1734898262629,-3000.0,0.000163,2]
[346336585,1734898262639,-3000.0,0.0001631,2]
[346336586,1734898262648,-151.0,0.00016316,2]
[346336587,1734898262658,-3000.0,0.0001632,2]
[346336588,1734898262667,-1500.0,0.00016322,2]
[346336589,1734898262676,-1500.0,0.00016322,2]
[346336590,1734898262685,-1500.0,0.00016322,2]
[346336591,1734898262695,-1500.0,0.00016322,2]
[346336592,1734898262705,-1500.0,0.00016322,2]
[346336593,1734898262715,-3000.0,0.0001633,2]
[346336594,1734898262724,-3000.0,0.0001634,2]
[346336595,1734898262733,-160.0,0.00016342,9]
[346336596,1734898262743,-3000.0,0.0001635,2]
[346336597,1734898262755,-153.0,0.00016356,2]
[346336598,1734898262766,-3000.0,0.0001636,2]
[346336599,1734898262775,-3000.0,0.0001637,2]
[346336600,1734898262785,-3000.0,0.0001638,2]
[346336601,1734898262794,-3000.0,0.0001639,2]
[346336602,1734898262803,-3000.0,0.000164,2]
[346336603,1734898262812,-3000.0,0.0001641,2]
[346336604,1734898262821,-3000.0,0.0001642,2]
[346336605,1734898262830,-3000.0,0.0001643,2]
[346336606,1734898262839,-500.0,0.00016438,2]
[346336607,1734898262850,-568803.45825253,0.00016438,2]
[346336608,1734898262859,-81179.83245489,0.00016438,2]
[346336609,1734898262870,-500.0,0.00016438,2]
[346336610,1734898262880,-951.87,0.00016438,7]
[346336611,1734898262892,-951.87,0.00016438,7]
[346336612,1734898262903,-951.87,0.00016438,7]
[346336613,1734898262911,-951.87,0.00016438,7]
[346336614,1734898262921,-951.87,0.00016438,7]
[346336615,1734898262930,-951.87,0.00016438,7]
[346336616,1734898262939,-951.87,0.00016438,7]
[346336617,1734898262948,-951.87,0.00016438,7]
[346336618,1734898262957,-951.87,0.00016438,7]
[346336619,1734898262967,-951.87,0.00016438,7]
[346336620,1734898262976,-951.87,0.00016438,7]
[346336621,1734898262985,-951.87,0.00016438,7]
[346336622,1734898262995,-951.87,0.00016438,7]
[346336623,1734898263006,-951.87,0.00016438,7]
[346336624,1734898263015,-951.87,0.00016438,7]
[346336625,1734898263025,-951.87,0.00016438,7]
[346336626,1734898263034,-951.87,0.00016438,7]
[346336627,1734898263044,-951.87,0.00016438,7]
[346336628,1734898263053,-951.87,0.00016438,7]
[346336629,1734898263066,-951.87,0.00016438,7]
[346336630,1734898263077,-951.87,0.00016438,7]
[346336631,1734898263089,-951.87,0.00016438,7]
[346336632,1734898263099,-951.87,0.00016438,7]
[346336633,1734898263108,-952.09647356,0.00016438,7]
[346336634,1734898263117,-500.0,0.00016438,2]
[346336635,1734898263263,-500.0,0.00016438,2]
[346336636,1734898263274,-500.0,0.00016438,2]
[346336637,1734898263284,-500.0,0.00016438,2]
[346336638,1734898263294,-500.0,0.00016438,2]
[346336639,1734898263304,-500.0,0.00016438,2]
[346336640,1734898263314,-570.30414321,0.00016438,2]
[346336641,1734898263323,-500.0,0.00016438,2]
[346336642,1734898263333,-500.0,0.00016438,2]
[346336643,1734898263343,-500.0,0.00016438,2]
[346336644,1734898263353,-500.0,0.00016438,2]
[346336645,1734898263363,-500.0,0.00016438,2]
[346336646,1734898263373,-500.0,0.00016438,2]
[346336647,1734898263382,-500.0,0.00016438,2]
[346336648,1734898263393,-500.0,0.00016438,2]
[346336649,1734898263402,-500.0,0.00016438,2]
[346336650,1734898263412,-500.0,0.00016438,2]
[346336651,1734898263422,-500.0,0.00016438,2]
[346336652,1734898263432,-500.0,0.00016438,2]
[346336653,1734898263442,-500.0,0.00016438,2]
[346336654,1734898263451,-500.0,0.00016438,2]
[346336655,1734898263462,-500.0,0.00016438,2]
[346336656,1734898263471,-500.0,0.00016438,2]
[346336657,1734898263482,-500.0,0.00016438,2]
[346336658,1734898263492,-500.0,0.00016438,2]
[346336659,1734898263502,-500.0,0.00016438,2]
[346336660,1734898263511,-500.0,0.00016438,2]
[346336661,1734898263522,-500.0,0.00016438,2]
[346336662,1734898263533,-500.0,0.00016438,2]
[346336663,1734898263543,-500.0,0.00016438,2]
[346336664,1734898263552,-500.0,0.00016438,2]
[346336665,1734898263563,-500.0,0.00016438,2]
[346336666,1734898263573,-500.0,0.00016438,2]
[346336667,1734898263582,-500.0,0.00016438,2]
[346336668,1734898263592,-500.0,0.00016438,2]
[346336669,1734898263601,-500.0,0.00016438,2]
[346336670,1734898263611,-500.0,0.00016438,2]
[346336671,1734898263622,-500.0,0.00016438,2]
[346336672,1734898263630,-500.0,0.00016438,2]
[346336673,1734898263640,-709.72,0.00016438,2]
[346336674,1734898263649,-564.63,0.00016438,2]
[346336675,1734898263659,-500.0,0.00016438,2]
[346336676,1734898263669,-500.0,0.00016438,2]
[346336677,1734898263678,-596.88,0.00016438,2]
[346336678,1734898263688,-509.11,0.00016438,2]
[346336679,1734898263698,-404.54460616,0.00016438,2]
[346336680,1734898263708,-500.0,0.00016438,2]
[346336681,1734898263718,-508.19,0.00016438,2]
[346336682,1734898263727,-500.0,0.00016438,2]
[346336683,1734898263737,-188.86473845,0.00016438,2]
[346336684,1734898263747,-500.0,0.00016438,2]
[346336685,1734898263757,-500.0,0.00016438,2]
[346336686,1734898263766,-500.0,0.00016438,2]
[346336687,1734898263775,-500.0,0.00016438,2]
[346336688,1734898263784,-996.41,0.00016438,2]
[346336689,1734898263794,-552.02,0.00016438,2]
[346336690,1734898263803,-500.0,0.00016438,2]
[346336691,1734898263813,-896.76,0.00016438,2]
[346336692,1734898263822,-643.06,0.00016438,2]
[346336693,1734898263831,-622.12,0.00016438,2]
[346336694,1734898263841,-544.82,0.00016438,2]
[346336695,1734898263852,-500.0,0.00016438,2]
[346336696,1734898263863,-151.139843,0.00016438,2]
[346336697,1734898263874,-514.67,0.00016438,2]
[346336698,1734898263883,-151.139843,0.00016438,2]
[346336699,1734898263893,-500.0,0.00016438,2]
[346336700,1734898263903,-1747.14,0.00016438,2]
[346336701,1734898263912,-638.51,0.00016438,2]
[346336702,1734898263921,-1146.78,0.00016438,2]
[346336703,1734898263930,-1384.02,0.00016438,2]
[346336704,1734898263939,-204.29,0.00016438,2]
[346336705,1734898263949,-1829.53,0.00016438,2]
[346336706,1734898263960,-514.04057797,0.00016438,2]
[346336707,1734898263969,-620.23,0.00016438,2]
[346336708,1734898263979,-1154.81,0.00016438,2]
[346336709,1734898263988,-200.0,0.00016438,2]
[346336710,1734898263998,-200.0,0.00016438,2]
[346336711,1734898264007,-200.0,0.00016438,2]
[346336712,1734898264017,-200.0,0.00016438,2]
[346336713,1734898264026,-200.0,0.00016438,2]
[346336714,1734898264035,-200.0,0.00016438,2]
[346336715,1734898264045,-200.0,0.00016438,2]
[346336716,1734898264055,-200.0,0.00016438,2]
[346336717,1734898264064,-200.0,0.00016438,2]
[346336718,1734898264074,-200.0,0.00016438,2]
[346336719,1734898264083,-202.56004705,0.00016438,2]
[346336720,1734898264093,-1071.92,0.00016438,2]
[346336721,1734898264102,-3377.75,0.00016438,2]
[346336722,1734898264112,-677.42,0.00016438,2]
[346336723,1734898264121,-500.0,0.00016438,2]
[346336724,1734898264130,-674.98,0.00016438,2]
[346336725,1734898264140,-1484.35,0.00016438,2]
[346336726,1734898264149,-500.0,0.00016438,2]
[346336727,1734898264159,-915.03,0.00016438,2]
[346336728,1734898264168,-1120.23,0.00016438,2]
[346336729,1734898264178,-500.0,0.00016438,2]
[346336730,1734898264188,-500.0,0.00016438,2]
[346336731,1734898264198,-645.28,0.00016438,2]
[346336732,1734898264207,-966.84,0.00016438,2]
[346336733,1734898264217,-986.6,0.00016438,2]
[346336734,1734898264226,-986.6,0.00016438,2]
[346336735,1734898264236,-986.6,0.00016438,2]
[346336736,1734898264246,-986.6,0.00016438,2]
[346336737,1734898264255,-986.6,0.00016438,2]
[346336738,1734898264265,-986.6,0.00016438,2]
[346336739,1734898264274,-986.6,0.00016438,2]
[346336740,1734898264284,-986.6,0.00016438,2]
[346336741,1734898264294,-986.6,0.00016438,2]
[346336742,1734898264304,-986.6,0.00016438,2]
[346336743,1734898264314,-986.6,0.00016438,2]
[346336744,1734898264324,-500.0,0.00016438,2]
[346336745,1734898264334,-671.49,0.00016438,2]
[346336746,1734898264344,-999.5,0.00016438,2]
[346336747,1734898264354,-1014.49,0.00016438,2]
[346336748,1734898264364,-1300.26,0.00016438,2]
[346336749,1734898264373,-500.0,0.00016438,2]
[346336750,1734898264383,-559.61,0.00016438,2]
[346336751,1734898264392,-962.09,0.00016438,2]
[346336752,1734898264402,-500.0,0.00016438,2]
[346336753,1734898264411,-500.0,0.00016438,2]
[346336754,1734898264422,-500.0,0.00016438,2]
[346336755,1734898264431,-2050.24,0.00016438,2]
[346336756,1734898264441,-204.39672516,0.00016438,2]
[346336757,1734898264450,-500.0,0.00016438,2]
[346336758,1734898264460,-500.0,0.00016438,2]
[346336759,1734898264469,-1840.32,0.00016438,2]
[346336760,1734898264479,-500.0,0.00016438,2]
[346336761,1734898264488,-619.23,0.00016438,2]
[346336762,1734898264498,-1286.39,0.00016438,2]
[346336763,1734898264508,-500.0,0.00016438,2]
[346336764,1734898264518,-1768.71,0.00016438,2]
[346336765,1734898264528,-223.3,0.00016438,2]
[346336766,1734898264540,-1426.45,0.00016438,2]
[346336767,1734898264549,-564.33,0.00016438,2]
[346336768,1734898264558,-1742.18,0.00016438,2]
[346336769,1734898264567,-500.0,0.00016438,2]
[346336770,1734898264577,-500.0,0.00016438,2]
[346336771,1734898264586,-500.0,0.00016438,2]
[346336772,1734898264596,-422.93345007,0.00016438,2]
[346336773,1734898264606,-500.0,0.00016438,2]
[346336774,1734898264615,-1026.24,0.00016438,2]
[346336775,1734898264625,-500.0,0.00016438,2]
[346336776,1734898264635,-638.78,0.00016438,2]
[346336777,1734898264644,-524.92,0.00016438,2]
[346336778,1734898264653,-930.06,0.00016438,2]
[346336779,1734898264662,-500.0,0.00016438,2]
[346336780,1734898264671,-568.29,0.00016438,2]
[346336781,1734898264681,-1232.72,0.00016438,2]
[346336782,1734898264689,-659.14,0.00016438,2]
[346336783,1734898264698,-1396.28,0.00016438,2]
[346336784,1734898264708,-500.0,0.00016438,2]
[346336785,1734898264718,-500.0,0.00016438,2]
[346336786,1734898264727,-500.0,0.00016438,2]
[346336787,1734898264736,-500.0,0.00016438,2]
[346336788,1734898264745,-20933.72,0.00016438,2]
[346336789,1734898264754,-1915.93,0.00016438,2]
[346336790,1734898264765,-500.0,0.00016438,2]
[346336791,1734898264774,-500.0,0.00016438,2]
[346336792,1734898264783,-11586.64,0.00016438,2]
[346336793,1734898264792,-3634.74,0.00016438,2]
[346336794,1734898264802,-735.37,0.00016438,2]
[346336795,1734898264811,-609.44,0.00016438,2]
[346336796,1734898264821,-2358.12,0.00016438,2]
[346336797,1734898264830,-16117.57,0.00016438,2]
[346336798,1734898264839,-649.01,0.00016438,2]
[346336799,1734898264849,-993.7,0.00016438,2]
[346336800,1734898264858,-500.0,0.00016438,2]
[346336801,1734898264868,-8248.44,0.00016438,2]
[346336802,1734898264877,-823.48082568,0.00016438,2]
[346336803,1734898265015,-498.61127289,0.00016438,2]
[346336804,1734898265410,-500.0,0.00013698,2]
[346336805,1734898265421,-987.24,0.00013698,2]
[346336806,1734898265432,-500.0,0.00013698,2]
[346336807,1734898265442,-500.0,0.00013698,2]
[346336808,1734898265452,-987.24,0.00013972,2]
[346336809,1734898265465,-500.0,0.00013972,2]
[346336810,1734898265475,-779.37,0.00014246,2]
[346336811,1734898266638,-207.87,0.00014246,2]